Cogmind - Beta 15 @@@ ROGUE MODE // 2025.05.22 @ 05:53:11 Player: WetFingerGun Result: Destroyed by Y-54 Guardian with Gatling Laser Performance ------------- Evolutions (1) 500 Regions Visited (5) 1000 Robots Destroyed (38) 190 Value Destroyed (815) 815 Prototype IDs (2) 40 Alien Tech Used (0) 0 Bonus (904) 904 TOTAL SCORE: 3449 Bonus ------- Follower Combat Kills 304 Met Imprinter 300 Was Imprinted 300 Cogmind --------- Core Integrity 0/400 Matter 286/300 Energy 78/100 System Corruption 0% Temperature Warm (130) Movement Walking (120) Location -6/Proximity Caves Parts ------- > --- POWER (1) -------- (None) > --- PROPULSION (3) --- Armored Leg > --- UTILITY (3) ------ Small Storage Unit IFF Parser Hacking Suite > --- WEAPON (2) ------- Coil Gun CR-A16's Pointy Stick > --- INVENTORY (8) ---- Makeshift Power Source Mobile Refinery Mk. CCLXVII Makeshift Shrapnel Gun Peak State ------------ > --- POWER ------------ Angular Momentum Engine > --- PROPULSION ------- Carbon-fiber Leg Carbon-fiber Leg Armored Leg > --- UTILITY ---------- Small Storage Unit Force Booster Hacking Suite > --- WEAPON ----------- KE Penetrator Advanced Assault Cannon > --- INVENTORY -------- Makeshift Power Source Medium Treads IFF Parser Mobile Refinery Mk. CCLXVII Makeshift Shrapnel Gun Coil Gun Makeshift Sword CR-A16's Pointy Stick [Rating: 37] Favorites ----------- Power Makeshift Power Source Engine Makeshift Power Source Propulsion Wheel Treads Medium Treads Leg Carbon-fiber Leg Wheel Wheel Hover Unit Hover Unit Utility Hacking Suite Device Force Booster Storage Small Storage Unit Processor Machine Analyzer Hackware Hacking Suite Weapon Makeshift Sword Energy Gun Small Laser Ballistic Gun KE Penetrator Ballistic Cannon Advanced Assault Cannon Launcher Proton Missile Launcher Slashing Weapon Makeshift Sword Piercing Weapon CR-A16's Pointy Stick Special Melee Weapon Datajack Build | -11 -10 -9 -9 -7 -6 ------- Run | Yrd Mat Mat Min Zio Pro Slots Evolved 2 | . . 2 . . . Power . | . . . . . . Propulsion 1 | . . 1 . . . Utility 1 | . . 1 . . . Weapon . | . . . . . . Parts Attached 50 | 9 20 1 2 8 10 Power 7 | 1 3 . . 2 1 Engine 7 | 1 3 . . 2 1 Core . | . . . . . . Reactor . | . . . . . . Propulsion 16 | 4 6 . . 2 4 Treads 1 | . . . . . 1 Leg 6 | . 3 . . . 3 Wheel 7 | 4 1 . . 2 . Hover 2 | . 2 . . . . Flight . | . . . . . . Utility 13 | 1 7 . 1 3 1 Device 6 | 1 1 . 1 2 1 Storage 3 | . 2 . . 1 . Processor 3 | . 3 . . . . Hackware 1 | . 1 . . . . Protection . | . . . . . . Artifact . | . . . . . . Weapon 14 | 3 4 1 1 1 4 Energy Gun 4 | 1 3 . . . . Energy Cannon . | . . . . . . Ballistic Gun 4 | 2 . . . . 2 Ballistic Cannon 1 | . . . . . 1 Launcher 2 | . 1 . . 1 . Special Weapon . | . . . . . . Impact Weapon . | . . . . . . Slashing Weapon 1 | . . . 1 . . Piercing Weapon 1 | . . . . . 1 Special Melee Weapon 1 | . . 1 . . . Unidentified Prototypes 1 | . . . . 1 . Parts Lost 18 | . 4 7 . . 7 Power 4 | . 2 1 . . 1 Propulsion 4 | . . 2 . . 2 Utility 1 | . 1 . . . . Weapon 9 | . 1 4 . . 4 Highest Loss Streak 7 | . 2 7 . . 6 To Critical Strikes . | . . . . . . Average Backups 5 | 1 5 4 3 5 7 Power . | . . 1 1 . 1 Propulsion . | . 1 . . . . Utility 2 | . 1 2 2 3 2 Weapon 2 | 1 2 1 . 1 3 Tool/Special . | . . . . . . Unused Backups 14 | . 4 . . 4 6 Power 1 | . . . . . 1 Propulsion . | . . . . . . Utility 7 | . 2 . . 2 3 Weapon 6 | . 2 . . 2 2 Tool/Special . | . . . . . . Average Slot Usage (%) 86 | . 91 60 31 84 94 Engine 10 | . 12 7 . 10 11 Leg 5 | . 2 . . . 16 Wheel 15 | . 16 . . 20 9 Hover 2 | . 8 14 . . . Device 9 | . 6 . 1 11 11 Storage 6 | . 5 . . 3 11 Processor 4 | . 5 11 11 7 . Hackware 9 | . 4 11 11 11 11 Energy Gun 3 | . 18 14 . . . Ballistic Gun 3 | . 8 2 . . 7 Ballistic Cannon 2 | . . . . . 7 Launcher 5 | . . . . 9 3 Slashing Weapon 6 | . . . 7 11 3 Peak Build Rating 37 | 6 11 11 13 27 37 Average Rating 21 | 3 7 9 9 22 31 On Entrance 10 | . 6 11 6 13 25 Naked Turns . | . . . . . . Heaviest Build 36 | 7 17 6 3 23 36 Greatest Support 46 | 32 26 12 3 20 46 Greatest Overweight (x) 1 | . . . . 1 1 Average Overweight (x) . | . . . . . . Largest Inventory Capacity 15 | 5 15 5 5 8 8 Average Capacity 6 | 5 6 5 5 6 8 Most Carried 10 | 5 10 5 5 8 8 Average Carried 5 | 1 5 4 3 5 7 Final Capacity 8 | 5 5 5 5 8 8 Final Carried 8 | 3 5 3 5 8 3 Class Distribution -------------------- 40% | Scavenger-Mutant 38% | Derelict-Mutant 20% | Mutant Dominant Class ---------------- Mutant | -10/Materials Mutant | -9/Materials Mutant | -9/Mines Scavenger-Mutant | -7/Zion Derelict-Mutant | -6/Proximity Caves Resources | -11 -10 -9 -9 -7 -6 ----------- Run | Yrd Mat Mat Min Zio Pro Matter Collected 1081 | 302 352 30 20 90 287 Remotely . | . . . . . . Salvage Created 1192 | 118 556 144 50 . 324 Parts 62 | 4 42 1 5 . 10 Haulers Intercepted 2 | . 2 . . . . Recyclers Shooed 1 | . 1 . . . . Parts Field Recycled . | . . . . . . Retrieved Matter . | . . . . . . Parts Self-Destructed 12 | . . . . . 12 Prevented 11 | . . . . . 11 Kills | -11 -10 -9 -9 -7 -6 ------- Run | Yrd Mat Mat Min Zio Pro Combat Hostiles Destroyed 24 | . 12 3 . . 9 Melee 4 | . . 2 . . 2 Guns 10 | . 8 1 . . 1 Cannons 4 | . . . . . 4 AOE 4 | . 4 . . . . Classes Destroyed 10 | 2 7 . . . 1 Worker 2 | . 2 . . . . Tunneler 4 | 1 1 . 2 . . Hauler 2 | . 2 . . . . Recycler 2 | 1 1 . . . . Mechanic 1 | . 1 . . . . Operator 1 | . 1 . . . . Drone 1 | . . . . . 1 Watcher 2 | . 2 . . . . Swarmer 10 | . 6 . . . 4 Grunt 13 | . 6 3 . . 4 Best Kill Streak 6 | 1 6 2 2 . 2 Combat Bots Only 5 | . 5 2 . . 2 Max Kills in Single Turn 3 | 1 3 1 1 . 1 Gunslinging . | . . . . . . Exploded 2 | . 2 . . . . Melee 1 | . . 1 . . 1 Uniques/NPCs Destroyed . | . . . . . . Combat | -11 -10 -9 -9 -7 -6 -------- Run | Yrd Mat Mat Min Zio Pro Hostile Shots Fired 271 | . 41 49 . . 181 Missed 101 | . 9 10 . . 82 Hits 170 | . 32 39 . . 99 Projectile 170 | . 32 39 . . 99 Critical Strikes 6 | . . 2 . . 4 Part Disruptions 1 | . . . . . 1 Damage Taken 2575 | . 826 518 . . 1231 Core 603 | . 197 180 . . 226 Absorbed by Shields . | . . . . . . Core Remaining (%) 60 | 100 21 . . . . Volleys Fired 107 | 4 58 21 . . 24 Largest 2 | 2 2 2 . . 2 Hottest 90 | 60 90 90 . . 79 Shots Fired 195 | 8 115 31 . . 41 Gun 170 | 8 112 31 . . 19 Cannon 18 | . . . . . 18 Launcher 7 | . 3 . . . 4 Special . | . . . . . . Kinetic 89 | 4 38 10 . . 37 Thermal 99 | 4 74 21 . . . Explosive 3 | . 3 . . . . Electromagnetic 4 | . . . . . 4 Robot Hit Streak 13 | 3 13 6 . . 8 Robot Miss Streak 5 | 1 5 2 . . 4 Penetration Max . | . . . . . . Secondary Targets 1 | . 1 . . . . Max Gunslinging Chain 1 | . 1 . . . . Shots Hit Robots 130 | 5 73 24 3 . 25 Core Hits 60 | 3 34 8 2 . 13 Critical Kills . | . . . . . . Critical Parts Destroyed 1 | . 1 . . . . Critical Strikes 6 | . 3 1 . . 2 Burn 3 | . 2 1 . . . Destroy 2 | . 1 . . . 1 Blast 1 | . . . . . 1 Melee Attacks 12 | . . 1 3 2 6 Impact . | . . . . . . Slashing 10 | . . . 3 2 5 Piercing 1 | . . . . . 1 Sneak Attacks 3 | . . . 2 . 1 Combat Hostiles 1 | . . . . . 1 Follow-up Attacks . | . . . . . . Damage Inflicted 2713 | 56 1204 298 190 . 965 Guns 1306 | 56 773 280 . . 197 Cannons 290 | . . . . . 290 Explosions 764 | . 428 . . . 336 Melee 332 | . . . 190 . 142 Ramming 21 | . 3 18 . . . Kinetic 814 | 21 202 104 . . 487 Thermal 1005 | 35 794 176 . . . Explosive 205 | . 205 . . . . Electromagnetic 336 | . . . . . 336 Impact . | . . . . . . Slashing 301 | . . . 190 . 111 Piercing 31 | . . . . . 31 Highest Corruption 8 | . 8 . . . . Average Corruption 7 | . 7 . . . . Corruption Purged . | . . . . . . Corruption Blocked . | . . . . . . Effects 18 | . 18 . . . . Message Errors 2 | . 2 . . . . Matter Fused 5 | . 5 . . . . Energy Discharges 2 | . 2 . . . . Data Loss (minor) 6 | . 6 . . . . Misfires 1 | . 1 . . . . Alerts 1 | . 1 . . . . Weapon Failures 1 | . 1 . . . . Overload Shots . | . . . . . . Overflow Damage 175 | . 131 . 38 . 6 Projectiles 6 | . . . . . 6 Explosions 131 | . 131 . . . . Melee 38 | . . . 38 . . Knockbacks 1 | . . . . . 1 Impact . | . . . . . . Kinetic 1 | . . . . . 1 Secondary . | . . . . . . Self-Inflicted Damage 147 | . 140 7 . . . Shots 2 | . 2 . . . . Rammed 4 | . . 4 . . . Targets Rammed 5 | . 1 4 . . . Kicked 1 | . 1 . . . . Crushed . | . . . . . . Highest Temperature 206 | . 132 159 . . 206 Average Temperature 45 | . 26 57 . . 70 Received Heat Transfer 914 | . 138 327 . . 449 Siege Activations . | . . . . . . Martial Activations . | . . . . . . Shielding Activations . | . . . . . . Robots Disrupted . | . . . . . . Combat Hostiles . | . . . . . . Robots Corrupted 2 | . . . . . 2 Combat Hostiles 2 | . . . . . 2 Parts Fried 1 | . . . . . 1 Impact Corruptions . | . . . . . . Robots Melted . | . . . . . . Combat Hostiles . | . . . . . . Parts Melted 5 | . 4 1 . . . Heat Transferred 2300 | 75 1680 545 . . . Parts Sabotaged . | . . . . . . Parts Stolen . | . . . . . . Parts Stripped . | . . . . . . Power Chain Reactions . | . . . . . . Alert | -11 -10 -9 -9 -7 -6 ------- Run | Yrd Mat Mat Min Zio Pro Maximum Alert Level 1 | . 1 . . . . Low Security (%) 99 | 100 99 100 100 . . Level 1 . | . . . . . . Level 2 . | . . . . . . Level 3 . | . . . . . . Level 4 . | . . . . . . Level 5 . | . . . . . . High Security . | . . . . . . Max Security . | . . . . . . Peak Influence 194 | 5 194 74 15 . . Initial 59 | . . 59 15 . . Average 67 | . 85 38 3 . . Influence Increases 1027 | 10 471 85 10 . 451 Destroy 0b10 Robot/C 600 | . 240 60 . . 300 Destroy 0b10 Robot/NC 80 | 10 50 . 10 . 10 Destroy Leader 108 | . 58 10 . . 40 Allied During Kill 56 | . . . . . 56 Successful Hack 15 | . 15 . . . . Disable Machine 30 | . 30 . . . . Destroy Structure 63 | . 63 . . . . Lose Combat Pursuer 75 | . 15 15 . . 45 Influence Decreases 990 | 10 331 185 50 . 414 Entered New Map 106 | . . 81 25 . . Time Decay 685 | 10 301 50 25 . 299 Lost Part 144 | . 30 54 . . 60 Lost Ally 55 | . . . . . 55 Squads Dispatched 4 | . 4 . . . . Investigation 2 | . 2 . . . . Extermination . | . . . . . . Reinforcement 2 | . 2 . . . . Assault . | . . . . . . Garrison . | . . . . . . Intercept . | . . . . . . Searches Triggered . | . . . . . . Construction Impeded . | . . . . . . Haulers Reinforced . | . . . . . . Active Scanning Responses . | . . . . . . Cargo Convoy Interrupts . | . . . . . . Stealth | -11 -10 -9 -9 -7 -6 --------- Run | Yrd Mat Mat Min Zio Pro Distress Signals . | . . . . . . Communications Jammed . | . . . . . . Distress Signals . | . . . . . . Times Spotted 44 | . 21 4 . . 19 Peak Tracking Total 4 | . 4 3 . . 4 Tactical Retreats 4 | . 1 1 . . 2 Traps | -11 -10 -9 -9 -7 -6 ------- Run | Yrd Mat Mat Min Zio Pro Traps Triggered 2 | . 2 . . . . Indirectly . | . . . . . . Trap Hack Attempts . | . . . . . . Triggered . | . . . . . . Disarmed . | . . . . . . Reprogrammed . | . . . . . . Reused . | . . . . . . Traps Extracted . | . . . . . . Installed . | . . . . . . Triggered . | . . . . . . Machines | -11 -10 -9 -9 -7 -6 ---------- Run | Yrd Mat Mat Min Zio Pro Machines Disabled 2 | . 2 . . . . Max in Single Turn 2 | . 2 . . . . Machines Repaired . | . . . . . . Machines Dismantled . | . . . . . . Machines Sabotaged . | . . . . . . Overloaded Fab Kills . | . . . . . . Hacking | -11 -10 -9 -9 -7 -6 --------- Run | Yrd Mat Mat Min Zio Pro Machines Accessed 7 | . 7 . . . . Terminals 6 | . 6 . . . . Fabricators . | . . . . . . Repair Stations . | . . . . . . Recycling Units 1 | . 1 . . . . Scanalyzers . | . . . . . . Garrison Access . | . . . . . . Total Hacks 17 | . 17 . . . . Successful 6 | . 6 . . . . Failed 11 | . 11 . . . . Catastrophic 5 | . 5 . . . . Database Lockouts . | . . . . . . Manual 13 | . 10 . . 3 . Terminals 16 | . 16 . . . . Fabricators . | . . . . . . Repair Stations . | . . . . . . Recycling Units 1 | . 1 . . . . Scanalyzers . | . . . . . . Garrison Access . | . . . . . . Terminal Hacks 5 | . 5 . . . . Record 1 | . 1 . . . . Level Access Points 1 | . 1 . . . . Branch Access Points 2 | . 2 . . . . Alert Level 1 | . 1 . . . . Fabricator Hacks . | . . . . . . Repair Station Hacks . | . . . . . . Recycling Unit Hacks 1 | . 1 . . . . Retrieve Components 1 | . 1 . . . . Scanalyzer . | . . . . . . Garrison Access Hacks . | . . . . . . Unauthorized Hacks . | . . . . . . Terminals . | . . . . . . Fabricators . | . . . . . . Repair Stations . | . . . . . . Recycling Units . | . . . . . . Scanalyzers . | . . . . . . Garrison Access . | . . . . . . Data Cores Recovered . | . . . . . . Used . | . . . . . . Hacking Detections 6 | . 6 . . . . Full Trace Events 1 | . 1 . . . . Feedback Events . | . . . . . . Feedback Blocked . | . . . . . . Robot Schematics Acquired 3 | . . . . 3 . Robots Built . | . . . . . . Authchips . | . . . . . . Time . | . . . . . . Total Robot Build Rating . | . . . . . . Part Schematics Acquired 16 | . . . . 16 . Parts Built . | . . . . . . Authchips . | . . . . . . Time . | . . . . . . Total Part Build Rating . | . . . . . . Parts Repaired . | . . . . . . Time . | . . . . . . Parts Recycled . | . . . . . . Recycled Matter . | . . . . . . Retrieved Matter . | . . . . . . Retrieved Components 9 | . 9 . . . . Parts Scanalyzed . | . . . . . . Part Schematics Acquired . | . . . . . . Parts Damaged . | . . . . . . Bothacking | -11 -10 -9 -9 -7 -6 ------------ Run | Yrd Mat Mat Min Zio Pro Used RIF Installer . | . . . . . . Robots Hacked 1 | . . 1 . . . Non-combat . | . . . . . . Combat 1 | . . 1 . . . Robot Hacks Applied 1 | . . 1 . . . parse_system 1 | . . 1 . . . Relay Couplers Released . | . . . . . . Fabnet Peak Effective % . | . . . . . . Robots Rewired . | . . . . . . Allies Hacked . | . . . . . . Hacks Repelled . | . . . . . . Allies | -11 -10 -9 -9 -7 -6 -------- Run | Yrd Mat Mat Min Zio Pro Total Allies 4 | . . . . 4 . Largest Group 4 | . . . . 4 4 Highest-Rated Group 152 | . . . . 152 152 Highest-Rated Ally 39 | . . . . 39 39 Total Orders . | . . . . . . Ally Attacks 36 | . . . . . 36 Total Damage 1124 | . . . . . 1124 Kills 9 | . . . . . 9 Allies Corrupted . | . . . . . . Allies Melted . | . . . . . . Intel | -11 -10 -9 -9 -7 -6 ------- Run | Yrd Mat Mat Min Zio Pro Active Infowar (turns) 2222 | 18 421 105 131 1317 230 Optics 76 | . 76 . . . . IFF 230 | . . . . . 230 Terrain 304 | . . . 24 280 . Seismic 303 | 18 285 . . . . Machine Analysis 1689 | . 136 105 131 1317 . Robot Analysis Total . | . . . . . . Derelict Logs Recovered 4 | . . . . 3 1 Drone Launches . | . . . . . . Drone Recoveries . | . . . . . . Exploration | -11 -10 -9 -9 -7 -6 ------------- Run | Yrd Mat Mat Min Zio Pro Turns Passed 4742 | 78 933 105 131 2048 1447 Spaces Moved 3824 | 59 830 34 207 1784 910 Core 349 | 20 . 3 207 119 . Treads . | . . . . . . Legs 483 | . 50 . . . 433 Wheels 2571 | 39 390 . . 1665 477 Hover 421 | . 390 31 . . . Flight . | . . . . . . Fastest Speed 50 | 50 56 50 50 50 95 Average Speed 87 | 80 72 55 50 83 119 Slowest Speed 190 | 100 120 56 50 95 190 Overloaded Moves . | . . . . . . Propulsion Burnouts . | . . . . . . Robots Hopped . | . . . . . . Potential Cave-ins . | . . . . . . Cave-ins Triggered 1 | . 1 . . . . Exploration Rate (%) 50 | 5 77 4 46 90 78 Regions Visited 5 Branch Regions 3 Pre-discovered Areas 3 | . . . . 3 . Known Exits Taken 1 | . 1 . . . . Unknown Exits Taken 4 | 1 . 1 1 1 . Scrap Searched 9 | . . . . 5 4 Spaces Dug . | . . . . . . Terrain Destroyed 69 | . 68 . . . 1 Melee . | . . . . . . Projectile 1 | . . . . . 1 AOE 68 | . 68 . . . . Terrain Rammed . | . . . . . . Walls Destroyed . | . . . . . . Machines Disabled . | . . . . . . Actions | -11 -10 -9 -9 -7 -6 --------- Run | Yrd Mat Mat Min Zio Pro Total 5011 | 79 1052 88 230 2336 1226 Wait 917 | . 96 26 16 522 257 Move 3820 | 58 829 34 206 1783 910 Hop . | . . . . . . Pick Up 54 | 8 23 . 3 13 7 Fast Attach 6 | 1 3 . 1 . 1 Attach 29 | 5 9 2 1 6 6 Detach . | . . . . . . Swap 27 | 3 14 1 . 3 6 Drop 35 | . 19 . . 7 9 Fire 107 | 4 58 21 . . 24 Melee 12 | . . 1 3 2 6 Ram 3 | . . 3 . . . Kick 1 | . 1 . . . . Crush . | . . . . . . Escape Stasis . | . . . . . . Rewire . | . . . . . . Trap . | . . . . . . Miscellaneous . | . . . . . . Route ------- -11/Scrapyard -10/Materials (discovered 4 exits: *Mat x3 / *Min) -9/Materials -9/Mines (discovered 2 exits: [Mat] / *Zio) -7/Zion -6/Proximity Caves History --------- Turn | Location | Event 6 | -11/Scrapyard | Discovered new exit (range 15) 79 | -11/Scrapyard | Entered Materials 114 | -10/Materials | Discovered new exit (range 11) 131 | -10/Materials | Discovered new exit (range 15) 470 | -10/Materials | Discovered new exit (range 7) 529 | -10/Materials | Crushed by falling debris 529 | -10/Materials | Core integrity fell below 50% 622 | -10/Materials | Build established: Mutant 811 | -10/Materials | Discovered new exit (range 15) 901 | -10/Materials | Identified exit to Mines 1002 | -10/Materials | Build established: Scavenger-Mutant 1008 | -10/Materials | Identified exit to Materials 1012 | -10/Materials | Entered another Materials area 1012 | -9/Materials | Evolved 2 slots: Propulsion x1, Utility x1 1022 | -9/Materials | Discovered new exit (range 6) 1117 | -9/Materials | Entered Mines 1140 | -9/Mines | Lost 7 parts (1p2n4w) 1144 | -9/Mines | A weapon hastily lodged in a ceiling crevice suddenly fell to the ground 1204 | -9/Mines | A Derelict revealed a hidden shortcut to a safe place 1243 | -9/Mines | Discovered new exit (range 12) 1248 | -9/Mines | Entered Zion 1259 | -7/Zion | Learned Factory trap positions 1340 | -7/Zion | Build established: Mutant 1664 | -7/Zion | Build established: Scavenger-Mutant 1932 | -7/Zion | Learned Factory terminal intel 1941 | -7/Zion | Learned Factory garrison access intel 1943 | -7/Zion | Found Prototype Device 1944 | -7/Zion | Identified Mobile Refinery Mk. CCLXVII 2068 | -7/Zion | Met Imprinter 2143 | -7/Zion | Imprinted 2145 | -7/Zion | Declared Zion's savior 2496 | -7/Zion | Learned location of Warlord (-4) 2696 | -7/Zion | Learned location of Data Miner (-6) 2739 | -7/Zion | Found CR-A16's Pointy Stick 2864 | -7/Zion | Build established: Derelict-Mutant 3266 | -7/Zion | Discovered new exit (range 8) 3296 | -7/Zion | Entered Proximity Caves 3296 | -6/Proximity Caves | Accompanied by 4 allies 3299 | -6/Proximity Caves | Spotter reported a threat 3409 | -6/Proximity Caves | Core integrity fell below 50% 3630 | -6/Proximity Caves | Found DCF Scrap (11 items) 3759 | -6/Proximity Caves | Spotted B-75 Beast 3801 | -6/Proximity Caves | Allies destroyed B-75 Beast 4187 | -6/Proximity Caves | Build established: Scavenger-Mutant 4539 | -6/Proximity Caves | Build established: Derelict-Mutant 4698 | -6/Proximity Caves | Attracted the attention of an 0b10 checkpoint 4733 | -6/Proximity Caves | Core integrity fell below 20% 4743 | -6/Proximity Caves | Destroyed by Y-54 Guardian with Gatling Laser Last Messages --------------- 04692_ Slug penetrates G-50 Soldier. 04698_ Y-54 Guardian: "INTERCEPTING UNREGISTERED DERELICT." 04707_ Slug penetrates Wall. 04711_ Carbon-fiber Leg destroyed. 04713_ Slug penetrates Wall. 04713_ G-50 Soldier destroyed. 04714_ Critical hit (Burn: +37). 04714_ KE Penetrator destroyed. 04719_ Carbon-fiber Leg destroyed. 04722_ Slug penetrates Wall. 04728_ Slug penetrates Y-54 Guardian. 04728_ Y-54 Guardian suffers critical hit (Destroy). 04730_ Adv. Assault Cannon destroyed. 04736_ Acquired 45 matter. 04738_ Acquired 72 matter. 04740_ Mak. Sword destroyed. 04740_ Angular Momentum Engine destroyed. 04740_ G-50 Soldier destroyed. Map ----- +----------------------------------------------------+ | ?????????????????????????????????????????????????? | | ?????????????????????????????????????????????????? | | ?????????????????????????????????????????????????? | | ?????????????????????????????????????????????????? | | ?????????????????????????????????????????????????? | | ?????????????????????????????????????????????????? | | ?????????????????????????????????????????????????? | | ?????????????????????????????????????????????????? | | ?????????????????????????????????????????????????? | | ?????????????????????????????????????????????????? | | ?????????????????????????????????????????????????? | | ?????????????????????????????????????????????????? | | ?????????????????????????????????????????????????? | | ?????????????????##########??????????????????????? | | ?????????????????# #??????????????????????? | | ??????????####???# #??????????????????????? | | ?????????## ##### """" #??########????????????? | | ?????##### ## """" ### ?????????????? | | ?????# """" ## ????? ##???????? | | ???### "" #????? #???????? | | ???# ### "" #### #???????? | | ???# #?## """" ????????? | | ???# ####??## "" % #???????????? | | ???# #??????## %###????????????????? | | ???# #???????# % #######= ;###??????????????????? | | ##?# #???????#! ##???#@*##????????????????????? | | ### #???????##% #???#[Y#?????????????????????? | | ## #????????## #??? %% #????????????????????? | | #?????????## ##?? % #???????????????????? | | #??????????####?? #??????????????????? | | #??????????????? ## #??????????????????? | | ###?????????????? #?##??????????????????? | | ##???????????????? #?????????????????????? | | ##???????????????? #?????????????????????? | | ##???????????????? #?????????????????????? | | #????????????????? % ?????????????????????? | | #???????????????? ?????????????????????? | | ??????????????????? #?????????????????????? | | ??????????????????? ####??????????????????????? | | ????????????????????? ??????????????????????????? | | ?????????????????????????????????????????????????? | | ?????????????????????????????????????????????????? | | ?????????????????????????????????????????????????? | | ?????????????????????????????????????????????????? | | ?????????????????????????????????????????????????? | | ?????????????????????????????????????????????????? | | ?????????????????????????????????????????????????? | | ?????????????????????????????????????????????????? | | ?????????????????????????????????????????????????? | | ?????????????????????????????????????????????????? | +----------------------------------------------------+ Best States ------------- Heat Dissipation 35 Energy Generation 18 Energy Capacity 300 Matter Stores 300 Matter Capacity 300 Sight Range 18 Terrain Scan Range 16 Terrain Scan Density 10 Evasion (%) 55 Force Boost 20 Offensive Hacking 10 Item Schematics ----------------- Adv. Assault Cannon | -7/Zion | Archive Adv. Heat Sink | -7/Zion | Archive Lyr. Heavy Armor Plating | -7/Zion | Archive Kinecellerator | -7/Zion | Archive Hvy. Plasma Cannon | -7/Zion | Archive Imp. Melee Analysis Suite | -7/Zion | Archive Flexi-carbon Leg | -7/Zion | Archive Armor Integrity Analyzer | -7/Zion | Archive Hvy. Flak Cannon | -7/Zion | Archive Imp. Deuterium Engine | -7/Zion | Archive Lrn. Tractor Beam | -7/Zion | Archive Fusion Compressor | -7/Zion | Archive Core Analyzer | -7/Zion | Archive Microactuators | -7/Zion | Archive Coil Gun | -7/Zion | Archive Lrn. Phase Cannon | -7/Zion | Archive Robot Schematics ------------------ C-17 Slicer | -7/Zion | Archive L-31 Rogue | -7/Zion | Archive A-02 Transporter | -7/Zion | Archive Fabricated ------------ Nothing Repaired ---------- Nothing Alien Tech Used ----------------- None Achievements -------------- Fist Fight Power Corrupts Robot Respite The One Tourist Challenges ------------ None Game ------ Seed HypertargetingMetaSuite Manual? 0 Play Time 01:18:15 Cumulative 13.7 hours Start 2025.05.22 @ 04:04:03 End 2025.05.22 @ 05:53:11 Sessions 1 Manual Loads 0 Difficulty Rogue Special Mode None Game No. 13 Rogue 13 Adventurer 0 Explorer 0 Win Type - Total 0 Types 0/0/0/0/0/0/0/0/0/0 Lore% 2 Gallery% 11 Achievement% 11 Wizard Run 0 Options --------- Layout 1 ASCII 0 Keyboard 0 Movement Mouse Keybinds 0 Fullscreen 1 Font 32/SmallcapsGlow Map View 50x35 Zoom Use 0% Tactical HUD 1 Map Filters NONE Filters NONE Steam 1 RUN: 7041ac90-be6a-4e46-91da-3d62271f9a42